Cogmind - Beta 15 @@@ ROGUE MODE // 2025.10.05 @ 15:38:04 Player: Blue Cog Result: Self-destructed Performance ------------- Evolutions (2) 1000 Regions Visited (5) 1000 Robots Destroyed (26) 130 Value Destroyed (455) 455 Prototype IDs (24) 480 Alien Tech Used (0) 0 Bonus (300) 300 TOTAL SCORE: 3365 Bonus ------- Aligned with FarCom 300 Cogmind --------- Core Integrity 544/550 Matter 280/300 Energy 250/250 System Corruption 0% Temperature Cool (0) Movement Rolling (105) Ox1 Location -8/Materials Parts ------- > --- POWER (1) -------- Ion Engine > --- PROPULSION (3) --- Light Treads Armored Wheel Armored Wheel > --- UTILITY (4) ------ Large Storage Unit Light Armor Plating Bomb Drone Bay (1/16) > --- WEAPON (3) ------- EM Shotgun Particle Gun Particle Gun > --- INVENTORY (15) --- Light Ion Engine Light Ion Engine Light Treads Wheel Small Storage Unit Large Matter Pod (150) Seismic Detector 0b10 Alert Chip Power Shielding Light Armor Plating Shield Generator Shield Generator Rocket Launcher Mining Laser Peak State ------------ > --- POWER ------------ Ion Engine > --- PROPULSION ------- Light Treads Armored Wheel Armored Wheel > --- UTILITY ---------- Large Storage Unit Light Armor Plating Bomb Drone Bay > --- WEAPON ----------- EM Shotgun Particle Gun Particle Gun > --- INVENTORY -------- Light Ion Engine Light Ion Engine Light Treads Wheel Small Storage Unit Large Matter Pod Seismic Detector 0b10 Alert Chip Power Shielding Shield Generator Shield Generator Rocket Launcher Mining Laser [Rating: 30] Favorites ----------- Power Ion Engine Engine Ion Engine Propulsion Wheel Treads Light Treads Wheel Wheel Utility Large Storage Unit Device Improved Heat Sink Storage Large Storage Unit Processor Targeting Computer Protection Light Armor Plating Weapon Particle Gun Energy Gun Particle Gun Ballistic Gun Assault Rifle Build | -11 -10 -10 -10 -9 -8 ------- Run | Yrd Mat Min Exi Min Mat Slots Evolved 4 | . . . . . 4 Power . | . . . . . . Propulsion 1 | . . . . . 1 Utility 2 | . . . . . 2 Weapon 1 | . . . . . 1 Parts Attached 23 | 7 1 8 . . 7 Power 3 | 1 . 2 . . . Engine 3 | 1 . 2 . . . Core . | . . . . . . Reactor . | . . . . . . Propulsion 6 | 2 . 2 . . 2 Treads 2 | . . 2 . . . Leg . | . . . . . . Wheel 4 | 2 . . . . 2 Hover . | . . . . . . Flight . | . . . . . . Utility 8 | 2 1 2 . . 3 Device 4 | 1 . 1 . . 2 Storage 2 | 1 1 . . . . Processor 1 | . . . . . 1 Hackware . | . . . . . . Protection 1 | . . 1 . . . Artifact . | . . . . . . Weapon 6 | 2 . 2 . . 2 Energy Gun 5 | 1 . 2 . . 2 Energy Cannon . | . . . . . . Ballistic Gun 1 | 1 . . . . . Ballistic Cannon . | . . . . . . Launcher . | . . . . . . Special Weapon . | . . . . . . Impact Weapon . | . . . . . . Slashing Weapon . | . . . . . . Piercing Weapon . | . . . . . . Special Melee Weapon . | . . . . . . Unidentified Prototypes 1 | . . . . . 1 Parts Lost 5 | . . 5 . . . Power 1 | . . 1 . . . Propulsion 1 | . . 1 . . . Utility 1 | . . 1 . . . Weapon 2 | . . 2 . . . Highest Loss Streak 2 | . . 2 . . . To Critical Strikes . | . . . . . . Average Backups 9 | 1 4 9 10 11 13 Power 1 | . 1 1 2 2 2 Propulsion 1 | 1 2 1 1 1 1 Utility 4 | . 1 4 5 6 7 Weapon 1 | . . 1 2 2 2 Tool/Special . | . . . . . . Unused Backups 8 | . . . . . 8 Power 1 | . . . . . 1 Propulsion . | . . . . . . Utility 5 | . . . . . 5 Weapon 2 | . . . . . 2 Tool/Special . | . . . . . . Average Slot Usage (%) 92 | . 100 97 85 85 85 Engine 13 | . 14 14 14 14 9 Treads 10 | . . 3 28 28 10 Wheel 16 | . 28 24 . . 15 Device 7 | . 14 10 . . 8 Storage 13 | . 14 14 14 14 9 Protection 6 | . . 3 14 14 9 Energy Gun 20 | . 14 24 14 14 21 Ballistic Gun 1 | . 14 1 . . . Peak Build Rating 30 | 7 7 11 9 10 30 Average Rating 11 | 5 7 9 9 9 23 On Entrance 7 | . 7 7 9 9 10 Naked Turns . | . . . . . . Heaviest Build 45 | 15 30 33 31 31 45 Greatest Support 40 | 20 20 40 40 40 40 Greatest Overweight (x) 3 | . 1 3 . . 2 Average Overweight (x) . | . . . . . . Largest Inventory Capacity 15 | 8 15 15 15 15 15 Average Capacity 14 | 7 12 15 15 15 15 Most Carried 15 | 3 7 12 12 13 15 Average Carried 10 | 2 4 10 11 12 14 Final Capacity 15 | 8 15 15 15 15 15 Final Carried 14 | 3 7 11 12 13 14 Class Distribution -------------------- 86% | Mutant 8% | Skirmisher 4% | Tank Dominant Class ---------------- Mutant | -10/Materials Mutant | -10/Mines Mutant | -10/Exiles Mutant | -9/Mines Skirmisher | -8/Materials Resources | -11 -10 -10 -10 -9 -8 ----------- Run | Yrd Mat Min Exi Min Mat Matter Collected 633 | 168 62 324 . . 79 Remotely . | . . . . . . Salvage Created 687 | 74 78 262 . . 273 Parts 59 | 9 10 22 . . 18 Haulers Intercepted 1 | . 1 . . . . Recyclers Shooed 1 | . . 1 . . . Parts Field Recycled . | . . . . . . Retrieved Matter . | . . . . . . Parts Self-Destructed . | . . . . . . Prevented . | . . . . . . Kills | -11 -10 -10 -10 -9 -8 ------- Run | Yrd Mat Min Exi Min Mat Combat Hostiles Destroyed 17 | . . 11 . . 6 Guns 15 | . . 11 . . 4 AOE 2 | . . . . . 2 Classes Destroyed 9 | 1 3 3 . . 2 Worker 1 | . 1 . . . . Builder 1 | . . . . . 1 Tunneler 4 | 4 . . . . . Hauler 1 | . 1 . . . . Watcher 1 | . 1 . . . . Swarmer 9 | . . 6 . . 3 Grunt 8 | . . 4 . . 4 Duelist 1 | . . . . . 1 Assembled 1 | . . 1 . . . Best Kill Streak 7 | 4 2 4 . . 7 Combat Bots Only 6 | . . 3 . . 6 Max Kills in Single Turn 4 | 2 1 1 . . 4 Gunslinging . | . . . . . . Exploded 2 | . . . . . 2 Melee . | . . . . . . Uniques/NPCs Destroyed . | . . . . . . Combat | -11 -10 -10 -10 -9 -8 -------- Run | Yrd Mat Min Exi Min Mat Hostile Shots Fired 82 | . . 62 . . 20 Missed 20 | . . 12 . . 8 Hits 62 | . . 50 . . 12 Projectile 62 | . . 50 . . 12 Damage Taken 705 | . . 533 . . 172 Core 84 | . . 78 . . 6 Absorbed by Shields 40 | . . . . . 40 Core Remaining (%) 84 | 100 . . . 68 . Volleys Fired 65 | 4 8 37 . . 16 Largest 2 | 2 2 2 . . 2 Hottest 130 | 70 70 115 . . 130 Shots Fired 115 | 8 16 69 . . 22 Gun 115 | 8 16 69 . . 22 Cannon . | . . . . . . Launcher . | . . . . . . Special . | . . . . . . Kinetic 26 | 4 8 14 . . . Thermal 76 | 4 8 55 . . 9 Explosive . | . . . . . . Electromagnetic 13 | . . . . . 13 Robot Hit Streak 10 | 3 6 10 . . 5 Robot Miss Streak 7 | 2 1 7 . . 3 Penetration Max . | . . . . . . Secondary Targets 2 | . . 2 . . . Max Gunslinging Chain 1 | . . 1 . . . Shots Hit Robots 74 | 4 11 43 . . 16 Core Hits 38 | 4 5 17 . . 12 Critical Kills . | . . . . . . Critical Parts Destroyed . | . . . . . . Critical Strikes 5 | . . 5 . . . Burn 5 | . . 5 . . . Melee Attacks . | . . . . . . Impact . | . . . . . . Slashing . | . . . . . . Piercing . | . . . . . . Sneak Attacks . | . . . . . . Combat Hostiles . | . . . . . . Follow-up Attacks . | . . . . . . Damage Inflicted 1161 | 72 144 531 . . 414 Guns 948 | 72 144 531 . . 201 Cannons . | . . . . . . Explosions 213 | . . . . . 213 Melee . | . . . . . . Ramming . | . . . . . . Kinetic 222 | 35 59 128 . . . Thermal 802 | 37 85 403 . . 277 Explosive . | . . . . . . Electromagnetic 137 | . . . . . 137 Impact . | . . . . . . Slashing . | . . . . . . Piercing . | . . . . . . Highest Corruption . | . . . . . . Average Corruption . | . . . . . . Corruption Purged . | . . . . . . Corruption Blocked . | . . . . . . Overload Shots . | . . . . . . Overflow Damage . | . . . . . . Projectiles . | . . . . . . Explosions . | . . . . . . Melee . | . . . . . . Knockbacks . | . . . . . . Impact . | . . . . . . Kinetic . | . . . . . . Secondary . | . . . . . . Self-Inflicted Damage 45 | . . . . . 45 Shots 1 | . . . . . 1 Rammed . | . . . . . . Targets Rammed . | . . . . . . Kicked . | . . . . . . Crushed . | . . . . . . Highest Temperature 212 | 27 27 212 . . 157 Average Temperature 57 | 12 10 68 . . 77 Received Heat Transfer 172 | . . 172 . . . Siege Activations . | . . . . . . Martial Activations . | . . . . . . Shielding Activations . | . . . . . . Robots Disrupted . | . . . . . . Combat Hostiles . | . . . . . . Robots Corrupted . | . . . . . . Combat Hostiles . | . . . . . . Parts Fried . | . . . . . . Impact Corruptions . | . . . . . . Robots Melted . | . . . . . . Combat Hostiles . | . . . . . . Parts Melted 2 | . . 2 . . . Heat Transferred 2050 | 111 259 1482 . . 198 Parts Sabotaged . | . . . . . . Parts Stolen . | . . . . . . Parts Stripped . | . . . . . . Power Chain Reactions 1 | . . . . . 1 Alert | -11 -10 -10 -10 -9 -8 ------- Run | Yrd Mat Min Exi Min Mat Maximum Alert Level . | . . . . . . Low Security (%) 100 | 100 100 100 . 100 100 Level 1 . | . . . . . . Level 2 . | . . . . . . Level 3 . | . . . . . . Level 4 . | . . . . . . Level 5 . | . . . . . . High Security . | . . . . . . Max Security . | . . . . . . Peak Influence 138 | 15 10 120 . . 138 Initial 3 | . 3 . . . . Average 29 | 3 1 33 . . 49 Influence Increases 458 | 20 25 240 . . 173 Destroy 0b10 Robot/C 320 | . . 200 . . 120 Destroy 0b10 Robot/NC 40 | 20 15 . . . 5 Destroy Leader 64 | . 4 40 . . 20 Allied During Kill 5 | . . . . . 5 Successful Hack 6 | . 6 . . . . Disable Machine 15 | . . . . . 15 Destroy Structure 8 | . . . . . 8 Influence Decreases 458 | 15 30 240 . . 173 Entered New Map 2 | . 2 . . . . Time Decay 373 | 15 28 220 . . 110 Lost Part 20 | . . 20 . . . Lost Ally 63 | . . . . . 63 Squads Dispatched 1 | . 1 . . . . Investigation . | . . . . . . Extermination . | . . . . . . Reinforcement 1 | . 1 . . . . Assault . | . . . . . . Garrison . | . . . . . . Intercept . | . . . . . . Searches Triggered . | . . . . . . Construction Impeded . | . . . . . . Haulers Reinforced . | . . . . . . Active Scanning Responses . | . . . . . . Cargo Convoy Interrupts . | . . . . . . Stealth | -11 -10 -10 -10 -9 -8 --------- Run | Yrd Mat Min Exi Min Mat Distress Signals 1 | . . . . . 1 Communications Jammed . | . . . . . . Distress Signals . | . . . . . . Times Spotted 35 | . 3 23 . . 9 Peak Tracking Total 4 | . 3 4 . . 4 Tactical Retreats 5 | . . 5 . . . Traps | -11 -10 -10 -10 -9 -8 ------- Run | Yrd Mat Min Exi Min Mat Traps Triggered . | . . . . . . Indirectly . | . . . . . . Trap Hack Attempts . | . . . . . . Triggered . | . . . . . . Disarmed . | . . . . . . Reprogrammed . | . . . . . . Reused . | . . . . . . Traps Extracted . | . . . . . . Installed . | . . . . . . Triggered . | . . . . . . Machines | -11 -10 -10 -10 -9 -8 ---------- Run | Yrd Mat Min Exi Min Mat Machines Disabled 1 | . . . . . 1 Max in Single Turn . | . . . . . . Machines Repaired . | . . . . . . Machines Dismantled . | . . . . . . Machines Sabotaged . | . . . . . . Overloaded Fab Kills . | . . . . . . Hacking | -11 -10 -10 -10 -9 -8 --------- Run | Yrd Mat Min Exi Min Mat Machines Accessed 3 | . 1 1 1 . . Terminals 1 | . 1 . . . . Fabricators . | . . . . . . Repair Stations . | . . . . . . Recycling Units . | . . . . . . Scanalyzers . | . . . . . . Garrison Access . | . . . . . . Total Hacks 5 | . 3 1 1 . . Successful 3 | . 1 1 1 . . Failed 2 | . 2 . . . . Catastrophic . | . . . . . . Database Lockouts . | . . . . . . Manual 4 | . 3 . 1 . . Terminals 3 | . 3 . . . . Fabricators . | . . . . . . Repair Stations . | . . . . . . Recycling Units . | . . . . . . Scanalyzers . | . . . . . . Garrison Access . | . . . . . . Terminal Hacks 3 | . 1 1 1 . . Robot Analysis 1 | . 1 . . . . Open Door 1 | . . 1 . . . Proto ID Catalog 1 | . . . 1 . . Fabricator Hacks . | . . . . . . Repair Station Hacks . | . . . . . . Recycling Unit Hacks . | . . . . . . Scanalyzer . | . . . . . . Garrison Access Hacks . | . . . . . . Unauthorized Hacks . | . . . . . . Terminals . | . . . . . . Fabricators . | . . . . . . Repair Stations . | . . . . . . Recycling Units . | . . . . . . Scanalyzers . | . . . . . . Garrison Access . | . . . . . . Data Cores Recovered . | . . . . . . Used . | . . . . . . Hacking Detections 1 | . 1 . . . . Full Trace Events . | . . . . . . Feedback Events . | . . . . . . Feedback Blocked . | . . . . . . Robot Schematics Acquired . | . . . . . . Robots Built . | . . . . . . Authchips . | . . . . . . Time . | . . . . . . Total Robot Build Rating . | . . . . . . Part Schematics Acquired . | . . . . . . Parts Built . | . . . . . . Authchips . | . . . . . . Time . | . . . . . . Total Part Build Rating . | . . . . . . Parts Repaired . | . . . . . . Time . | . . . . . . Parts Recycled . | . . . . . . Recycled Matter . | . . . . . . Retrieved Matter . | . . . . . . Retrieved Components . | . . . . . . Parts Scanalyzed . | . . . . . . Part Schematics Acquired . | . . . . . . Parts Damaged . | . . . . . . Bothacking | -11 -10 -10 -10 -9 -8 ------------ Run | Yrd Mat Min Exi Min Mat Used RIF Installer . | . . . . . . Robots Hacked . | . . . . . . Non-combat . | . . . . . . Combat . | . . . . . . Robot Hacks Applied . | . . . . . . Relay Couplers Released . | . . . . . . Fabnet Peak Effective % . | . . . . . . Robots Rewired . | . . . . . . Allies Hacked . | . . . . . . Hacks Repelled . | . . . . . . Allies | -11 -10 -10 -10 -9 -8 -------- Run | Yrd Mat Min Exi Min Mat Total Allies 3 | . . . . 3 . Largest Group 3 | . . . . 3 3 Highest-Rated Group 40 | . . . . 40 40 Highest-Rated Ally 16 | . . . . 16 16 Total Orders 1 | . . . . . 1 EXPLORE 1 | . . . . . 1 Ally Attacks 22 | . . . . . 22 Total Damage 79 | . . . . . 79 Kills . | . . . . . . Allies Corrupted . | . . . . . . Allies Melted . | . . . . . . Intel | -11 -10 -10 -10 -9 -8 ------- Run | Yrd Mat Min Exi Min Mat Active Infowar (turns) 319 | 9 165 145 . . . Seismic 319 | 9 165 145 . . . Robot Analysis Total 1 | . 1 . . . . Derelict Logs Recovered . | . . . . . . Drone Launches 16 | . . . . . 16 Drone Recoveries 1 | . . . . . 1 Exploration | -11 -10 -10 -10 -9 -8 ------------- Run | Yrd Mat Min Exi Min Mat Turns Passed 1833 | 84 165 783 406 69 326 Spaces Moved 1141 | 74 156 373 254 43 241 Core 1 | 1 . . . . . Treads 376 | . . 56 254 43 23 Legs . | . . . . . . Wheels 764 | 73 156 317 . . 218 Hover . | . . . . . . Flight . | . . . . . . Fastest Speed 50 | 50 80 95 160 160 105 Average Speed 116 | 79 87 104 160 160 110 Slowest Speed 160 | 80 95 160 160 160 160 Overloaded Moves . | . . . . . . Propulsion Burnouts . | . . . . . . Robots Hopped . | . . . . . . Potential Cave-ins . | . . . . . . Cave-ins Triggered . | . . . . . . Exploration Rate (%) 34 | 4 31 53 60 8 50 Regions Visited 5 Branch Regions 3 Pre-discovered Areas . | . . . . . . Known Exits Taken . | . . . . . . Unknown Exits Taken 5 | 1 1 1 1 1 . Scrap Searched 1 | . . 1 . . . Spaces Dug . | . . . . . . Terrain Destroyed 7 | . . . . . 7 Melee . | . . . . . . Projectile . | . . . . . . AOE 7 | . . . . . 7 Terrain Rammed . | . . . . . . Walls Destroyed . | . . . . . . Machines Disabled . | . . . . . . Actions | -11 -10 -10 -10 -9 -8 --------- Run | Yrd Mat Min Exi Min Mat Total 1521 | 87 167 693 254 43 277 Wait 277 | . . 272 . . 5 Move 1136 | 73 155 372 253 42 241 Hop . | . . . . . . Pick Up 14 | 3 3 3 1 1 3 Fast Attach 15 | 7 . 2 . . 6 Attach 3 | . . 2 . . 1 Detach 2 | . . . . . 2 Swap 7 | . 1 5 . . 1 Drop 2 | . . . . . 2 Fire 65 | 4 8 37 . . 16 Melee . | . . . . . . Ram . | . . . . . . Kick . | . . . . . . Crush . | . . . . . . Escape Stasis . | . . . . . . Rewire . | . . . . . . Trap . | . . . . . . Miscellaneous . | . . . . . . Route ------- -11/Scrapyard -10/Materials (discovered 2 exits: *Min x2) -10/Mines (discovered 2 exits: [*Mat] / *Exi) -10/Exiles -9/Mines -8/Materials (discovered 1 exit: [*Fac]) History --------- Turn | Location | Event 26 | -11/Scrapyard | Discovered new exit (range 14) 85 | -11/Scrapyard | Entered Materials 214 | -10/Materials | Discovered new exit (range 11) 243 | -10/Materials | Discovered new exit (range 15) 250 | -10/Materials | Entered Mines 306 | -10/Mines | Build established: Mutant 451 | -10/Mines | Discovered new exit (range 7) 484 | -10/Mines | Assembled infested the area 504 | -10/Mines | Found a Scrap Suit stashed away for nefarious purposes 908 | -10/Mines | Found the Drone Emporium 911 | -10/Mines | Found Prototype Device 1025 | -10/Mines | Deemed a non-threat by the Exiles lab entrance 1027 | -10/Mines | Discovered new exit (range 5) 1033 | -10/Mines | Entered Exiles 1072 | -10/Exiles | Met 8R-AWN 1101 | -10/Exiles | Met EX-HEX 1152 | -10/Exiles | Met EX-BIN 1177 | -10/Exiles | Aligned with FarCom system 1179 | -10/Exiles | Given EX-Vault access code 1217 | -10/Exiles | Opened EX-Vault 1230 | -10/Exiles | Found 0b10 Alert Chip 1260 | -10/Exiles | Warned to stay clear of 0b10 Research branches 1310 | -10/Exiles | Met EX-DEC 1370 | -10/Exiles | Discovered new exit (range 10) 1439 | -10/Exiles | Left Exiles lab with 0b10 Alert Chip 1439 | -10/Exiles | Entered Mines 1446 | -9/Mines | Assisted by bots powering up and referring to "LRC-V3" 1491 | -9/Mines | Discovered new exit (range 5) 1499 | -9/Mines | Received a Rocket Launcher from a helpful Derelict 1508 | -9/Mines | Entered Materials 1508 | -8/Materials | Accompanied by 3 allies 1508 | -8/Materials | Evolved 4 slots: Propulsion x1, Utility x2, Weapon x1 1670 | -8/Materials | Identified Bomb Drone Bay 1773 | -8/Materials | Lost 4 allies 1785 | -8/Materials | Discovered new exit (range 6) 1834 | -8/Materials | Self-destructed Last Messages --------------- 01819_ Bomb Drone detonates. 01819_ Bomb Drone destroyed. 01820_ The unstable cave ceiling collapses. 01820_ Bomb Drone detonates. 01820_ Bomb Drone destroyed. 01820_ Bomb Drone detonates. 01820_ Bomb Drone destroyed. 01820_ Bomb Drone detonates. 01820_ Bomb Drone destroyed. 01820_ O-24 Administrator destroyed. 01820_ Y-45 Defender destroyed. 01820_ Bomb Drone destroyed. 01821_ Bomb Drone detonates. 01821_ Bomb Drone destroyed. 01822_ K-01 Serf collects debris. 01824_ The unstable cave ceiling collapses. 01825_ Bomb Drone detonates. 01825_ Bomb Drone destroyed. 01827_ Bomb Drone retrieved by Bomb Drone Bay (repair cost: 7). Map ----- +----------------------------------------------------+ | ?????????????????????????????????????????????????? | | ?????????????????????????????????????????????????? | | ?????????????????????????????????????????????????? | | ??????????#####??????????????????????????????????? | | ??????????# #???????????##########?????????????? | | ########### < #???????????# #?????###??###? | | + = """ # #?????####### #???### ### ## | | # "T" # ####### # #???# | | # [ # # #???# | | # + + #???# # | | # """ """ # # ##### % | | # """ """ # ###+### # # =% | | # """ """ # ## ## ## #### | | # # ## ## ## #??## | | ########### ## ## #########+###?# | | ##????????# + ! ## ####### #?#! | | #????????# ## ## #?# " | | #????????# ## *## " #?# ""# | | #????????## ### ## #?# # | | #?????????# #?# ### ######## #?########## | | #?????????# #?# #?# #??????## ##??######### | | ##?????????# #?######?# #???????# #???# # | | ???????????# #????????# #???????# ##### # | | ???????????# #????????#k######### ! + # | | ???????????# #????????# ## ^ # + | | ???????????# #????????#" @ = ## ^""" # | | ???????????# #????????#" ## "Y" #### | | ?########?##+#######??#" """ ]# [## | | #?# #??#T """ # [ | | #?# #??#" """ + %= | | #?# #??#" """ # # # # | | ] ## ##?#" """ # # | | ## ### #######!!**[[## | | ?# ##########?????#!!**[[## | | ## #???????######### | | ?# #???????????????# | | ### #???????????????# | | #?## # #???????????????# | | #### #???????????????# | | ## #???????????????? | | ?+ #???????????????? | | ?# ! #??????????????????## | | # ### /= ###???????????????????? | | ?# ##?## ??????????????? | | ?## ?????##### = ??????????? | | ??? ??????????# # [[ ???????????? | | ??????????????# ####[ [[ ######???????????? | | ??????????????# #??# [[ #????????????????? | | ??????????????# #??# ! #????????????????? | | ??????????????# #??# #????????????????? | +----------------------------------------------------+ Best States ------------- Heat Dissipation 39 Energy Generation 10 Energy Capacity 250 Matter Stores 300 Matter Capacity 300 Sight Range 16 Terrain Scan Density 10 Armor Coverage 150 Evasion (%) 44 Targeting Accuracy 5 Recoil Reduction 2 Item Schematics ----------------- None Robot Schematics ------------------ None Fabricated ------------ Nothing Repaired ---------- Nothing Alien Tech Used ----------------- None Achievements -------------- Release The Drones! Challenges ------------ None Game ------ Seed ShieldAdvancedScanner Manual? 0 Play Time 00:16:02 Cumulative 105.9 hours Start 2025.10.05 @ 15:20:56 End 2025.10.05 @ 15:38:04 Sessions 1 Manual Loads 0 Difficulty Rogue Special Mode None Game No. 64 Rogue 64 Adventurer 0 Explorer 0 Win Type - Total 2 Types 1/0/0/1/0/0/0/0/0/0 Lore% 40 Gallery% 49 Achievement% 51 Wizard Run 0 Options --------- Layout 1 ASCII 0 Keyboard 1 Movement Arrows Keybinds 0 Fullscreen 2 Font 24/Smallcaps Map View 50x35 Zoom Use 0% Tactical HUD 1 Map Filters NONE Filters NONE Steam 1 RUN: 5034ab51-c327-4e2e-9a9c-5ef5f897fdbc